bitfinex-derivatives/quotes_ETHF0:USTF0_20251005
["timestamp","ask_amount","ask_price","bid_price","bid_amount"]
[1759646480136,1.61423916,4560.0,4559.9,0.7551]
[1759646481233,1.61423916,4560.0,4559.9,0.5351]
[1759646481436,1.74103916,4560.0,4559.9,0.7551]
[1759646482735,1.74103916,4560.0,4559.9,0.22]
[1759646484238,4.55417916,4560.0,4559.9,0.22]
[1759646485541,4.55417916,4560.0,4559.8,0.22]
[1759646485734,0.5267,4559.6,4559.5,0.00200746]
[1759646485942,1.21957916,4559.6,4559.5,0.96590746]
[1759646487736,1.21957916,4559.6,4559.5,0.74590746]
[1759646487942,1.21957916,4559.6,4559.5,0.53710746]
[1759646488142,1.21957916,4559.6,4559.5,0.75710746]
[1759646489939,1.21957916,4559.6,4559.5,0.53710746]
[1759646490139,1.21957916,4559.6,4559.5,0.75710746]
[1759646490341,1.21957916,4559.6,4559.5,0.74590746]
[1759646490642,1.21957916,4559.6,4559.5,0.96590746]
[1759646493149,1.21957916,4559.6,4559.5,0.22200746]
[1759646493337,1.21957916,4559.6,4559.5,0.00200746]
[1759646493542,1.21957916,4559.6,4559.5,0.75460746]
[1759646495252,1.21957916,4559.6,4559.5,0.97680746]
[1759646495547,0.89867916,4559.6,4559.5,1.11340746]
[1759646495752,0.48437916,4559.6,4559.5,1.11340746]
[1759646495947,1.22237916,4559.6,4559.5,1.11340746]
[1759646496148,1.22237916,4559.6,4559.5,0.89340746]
[1759646496347,1.22237916,4559.6,4559.5,0.97680746]
[1759646500355,1.22237916,4559.6,4559.5,0.75680746]
[1759646500550,1.22237916,4559.6,4559.5,0.97680746]
[1759646503764,1.22237916,4559.6,4559.5,0.00200746]
[1759646506164,1.22237916,4559.6,4559.5,0.32850746]
[1759646506658,1.22237916,4559.6,4559.5,0.00200746]
[1759646506962,1.22237916,4559.6,4559.5,0.32850746]
[1759646507162,1.22237916,4559.6,4559.5,0.53460746]
[1759646507462,1.30606916,4559.6,4559.5,0.87770746]
[1759646507658,1.61956916,4559.6,4559.5,0.87770746]
[1759646510463,1.61956916,4559.6,4559.5,0.75340746]
[1759646513059,1.61956916,4559.6,4559.5,0.97340746]
[1759646517369,1.61956916,4559.6,4559.5,0.22200746]
[1759646517866,1.61956916,4559.6,4559.5,0.00200746]
[1759646523774,1.61956916,4559.6,4559.5,0.22270746]
[1759646523979,1.61956916,4559.6,4559.5,0.77620746]
[1759646524273,1.61956916,4559.6,4559.5,0.00200746]
[1759646534284,1.61956916,4559.6,4559.5,0.33670746]
[1759646534481,0.3135,4558.8,4558.0,0.14567187]
[1759646534682,0.7372,4558.6,4558.5,1.21898135]
[1759646534882,1.22157916,4558.6,4558.5,1.55368135]
[1759646535281,1.22157916,4558.6,4558.5,1.77248135]
[1759646535478,1.22157916,4558.6,4558.5,1.77529471]
[1759646536786,1.22157916,4558.6,4558.0,0.01377187]
[1759646537083,0.7372,4558.1,4558.0,0.01377187]
[1759646537285,1.22157916,4558.1,4558.0,0.55707187]
[1759646537785,0.48437916,4558.1,4558.0,1.29515583]
[1759646538181,0.92337916,4558.1,4557.0,2.35920946]
[1759646538382,0.92337916,4558.1,4547.9,0.02198841]
[1759646538383,0.1292,4556.5,4556.4,0.99828135]
[1759646538583,3.2078,4556.5,4556.4,1.9965627]
[1759646538886,0.4536,4557.5,4557.4,0.39488]
[1759646539092,0.4536,4557.5,4557.4,1.61316135]
[1759646539284,0.45544151,4557.5,4557.4,1.6151399]
[1759646539879,0.45544151,4557.5,4557.4,6.6151399]
[1759646540683,0.13104151,4557.5,4557.4,6.6151399]
[1759646540886,0.3244,4558.3,4557.4,6.2202599]
[1759646541088,3.337,4559.0,4558.4,0.39479]
[1759646541288,0.3429,4558.5,4558.4,0.39479]
[1759646541487,0.6673,4558.5,4558.4,0.39479]
[1759646541887,0.66955976,4558.5,4558.4,0.39479]
[1759646542486,0.89485976,4558.5,4558.4,0.39479]
[1759646545592,0.4536,4559.5,4558.4,5.99828135]
[1759646545788,0.3244,4559.9,4559.6,0.39468]
[1759646546085,0.1292,4560.5,4559.9,0.99828135]
[1759646546591,0.89465606,4560.0,4559.9,1.21828135]
[1759646547588,0.45565606,4560.0,4559.9,1.21828135]
[1759646548093,0.45565606,4560.0,4559.9,0.22]
[1759646552393,0.45565606,4560.0,4559.8,2.3912327]
[1759646552394,0.3222,4559.9,4559.8,2.3912327]
[1759646552593,0.3222,4559.9,4559.8,1.61295135]
[1759646552994,0.5345,4559.9,4559.8,1.61295135]
[1759646553297,0.5345,4559.9,4559.8,2.6112327]
[1759646554499,0.5345,4559.9,4559.8,1.61295135]
[1759646555400,0.5345,4559.9,4559.8,2.6112327]
[1759646556900,0.5345,4559.9,4559.8,5.8190327]
[1759646557292,0.5329,4559.9,4559.8,5.8190327]
[1759646557901,0.5329,4559.9,4559.8,4.82075135]
[1759646558104,0.5329,4559.9,4559.8,5.8190327]
[1759646558402,0.5329,4559.9,4559.8,4.82075135]
[1759646560801,0.5329,4559.9,4559.8,4.60075135]
[1759646560997,0.5329,4559.9,4559.8,4.82075135]
[1759646561300,1.57725509,4562.4,4560.0,1.97331]
[1759646561497,0.3423,4562.0,4561.9,0.428]
[1759646561796,0.5576,4562.0,4561.9,3.6358]
[1759646561998,0.5576,4562.0,4561.9,4.63408135]
[1759646562306,0.55939298,4562.0,4561.9,5.25038092]
[1759646562690,0.13179298,4562.0,4561.9,5.43208092]
[1759646562896,0.34409298,4562.0,4561.9,5.43208092]
[1759646563293,0.66629298,4562.0,4561.9,5.43208092]
[1759646563496,0.13,4562.5,4562.3,0.60056]
[1759646563497,0.3222,4562.4,4562.3,0.60056]
[1759646563698,0.3222,4562.4,4562.3,3.2207227]
[1759646563902,0.5345,4562.4,4562.3,1.82074135]
[1759646564104,0.5345,4562.4,4562.3,2.04074135]
[1759646564302,0.7498,4562.4,4562.3,2.04074135]
[1759646564604,0.75197671,4562.4,4562.3,1.82074135]
[1759646564904,0.75197671,4562.4,4562.3,2.04074135]
[1759646565107,0.75197671,4562.4,4561.9,3.20959957]
[1759646565307,0.75197671,4562.4,4562.3,0.99828135]
[1759646565508,0.75197671,4562.4,4562.3,1.21828135]
[1759646567398,0.75197671,4562.4,4562.3,1.42438135]
[1759646568404,0.75197671,4562.4,4562.3,1.20438135]
[1759646568710,0.75197671,4562.4,4562.3,1.42668135]
[1759646569411,0.75197671,4562.4,4562.3,1.65358135]
[1759646571112,0.75197671,4562.4,4562.3,2.04804135]
[1759646572914,0.75197671,4562.4,4562.3,1.82804135]
[1759646573112,0.75197671,4562.4,4562.3,1.65358135]
[1759646576916,0.75197671,4562.4,4562.3,1.43358135]
[1759646577211,0.75197671,4562.4,4562.3,1.65358135]
[1759646579009,0.75197671,4562.4,4562.3,1.43358135]
[1759646579208,0.75197671,4562.4,4562.3,1.65358135]
[1759646581010,0.75197671,4562.4,4562.3,1.20668135]
[1759646581213,0.8987,4562.0,4561.9,0.00179957]
[1759646581417,1.35544879,4562.0,4561.9,0.22179957]
[1759646581719,1.35544879,4562.0,4561.9,0.00179957]
[1759646581913,1.35544879,4562.0,4561.9,0.22179957]
[1759646582114,1.35544879,4562.0,4561.9,0.00179957]
[1759646582417,1.35544879,4562.0,4561.9,0.22179957]
[1759646583109,1.35544879,4562.0,4561.9,0.00179957]
[1759646583310,1.35544879,4562.0,4561.9,0.22179957]
[1759646583616,1.35544879,4562.0,4561.9,1.42848092]
[1759646584223,1.35544879,4562.0,4561.9,1.65538092]
[1759646584419,0.339,4562.0,4561.9,1.83668092]
[1759646584612,0.00217671,4562.4,4562.3,0.4353]
[1759646584613,0.56087671,4562.4,4562.3,0.4353]
[1759646584815,0.56087671,4562.4,4562.3,1.83488135]
[1759646585011,0.34117671,4562.4,4562.3,1.83488135]
[1759646586314,0.00217671,4562.4,4562.3,1.83488135]
[1759646586614,0.00217671,4562.4,4562.3,2.8331627]
[1759646586815,0.00217671,4562.4,4562.3,1.83488135]
[1759646587319,0.34117671,4562.4,4562.3,1.83488135]
[1759646587518,0.00217671,4562.4,4562.3,1.83488135]
[1759646590519,0.00217671,4562.4,4562.3,2.8331627]
[1759646592117,0.6887,4563.0,4562.9,0.6166]
[1759646592324,1.14271916,4563.0,4562.9,1.98948091]
[1759646592826,0.92301916,4563.0,4562.9,1.98948091]
[1759646593020,1.14529241,4563.0,4562.9,1.98948091]
[1759646593421,0.92559241,4563.0,4562.9,1.98948091]
[1759646593622,1.36179241,4563.0,4562.9,1.80818091]
[1759646594023,0.92559241,4563.0,4562.9,1.80818091]
[1759646594219,1.36179241,4563.0,4562.9,1.80818091]
[1759646596019,1.36179241,4563.0,4562.9,1.98948091]
[1759646596020,0.45659241,4563.0,4562.9,1.98948091]
[1759646596424,0.79559241,4563.0,4562.9,1.98948091]
[1759646596621,0.45659241,4563.0,4562.9,1.98948091]
[1759646596827,0.00257325,4563.0,4562.9,5.19728091]
[1759646597224,0.3286,4563.5,4563.4,1.00086]
[1759646597427,0.3286,4563.5,4563.4,2.37374091]
[1759646597628,0.78246652,4563.5,4563.4,2.37374091]
[1759646597829,0.78246652,4563.5,4563.4,5.58154091]
[1759646598031,1.34276652,4563.5,4563.4,4.79668091]
[1759646598226,1.34510968,4563.5,4563.4,5.00578091]
[1759646598424,1.34510968,4563.5,4563.4,4.78578091]
[1759646598834,1.34510968,4563.5,4563.4,5.00578091]
[1759646599239,1.34510968,4563.5,4563.4,4.78578091]
[1759646599536,1.34510968,4563.5,4563.4,5.00578091]
[1759646600327,0.67624316,4563.5,4563.4,4.78578091]
[1759646600533,0.67624316,4563.5,4563.4,5.18718091]
[1759646600932,0.00234316,4563.5,4563.4,5.18718091]
[1759646602234,0.5385,4564.2,4564.1,0.4251]
[1759646602534,1.00030376,4564.2,4564.1,1.79798091]
[1759646603234,1.00223806,4564.2,4564.1,1.79798091]
[1759646603435,0.5404343,4564.2,4564.1,1.79798091]
[1759646603837,0.5404343,4564.2,4564.1,1.97938091]
[1759646604836,0.7554343,4564.2,4564.1,1.79798091]
[1759646605931,0.7554343,4564.2,4564.1,1.57798091]
[1759646606238,0.7554343,4564.2,4564.1,1.79798091]
[1759646608432,0.7554343,4564.2,4564.1,1.57798091]
[1759646608637,0.5404343,4564.2,4564.1,1.97938091]
[1759646609038,0.5404343,4564.2,4564.1,1.79798091]
[1759646609339,0.7554343,4564.2,4564.1,1.79798091]
[1759646609635,0.7554343,4564.2,4564.1,1.57798091]
[1759646609837,0.7554343,4564.2,4564.1,1.79798091]
[1759646611842,0.7554343,4564.2,4564.1,1.57798091]
[1759646612242,0.7554343,4564.2,4564.1,1.79798091]
[1759646614337,0.7554343,4564.2,4564.1,1.57798091]
[1759646614545,0.7554343,4564.2,4564.1,1.79798091]
[1759646615240,0.0019343,4564.2,4564.1,1.97938091]
[1759646618141,0.6732,4565.0,4564.9,1.02353]
[1759646618445,0.6732,4565.0,4564.9,2.21501091]
[1759646618849,0.6732,4565.0,4564.9,1.82078091]
[1759646619143,0.89607948,4565.0,4564.9,1.82078091]
[1759646621638,0.67537948,4565.0,4564.9,2.00218091]
[1759646621838,0.45687948,4565.0,4564.9,2.00218091]
[1759646622135,0.67537948,4565.0,4564.9,2.00218091]
[1759646622338,1.38301128,4565.0,4564.9,1.82078091]
[1759646623146,1.38301128,4565.0,4564.9,1.59648091]
[1759646625542,1.38301128,4565.0,4564.9,1.82078091]
[1759646626045,1.38301128,4565.0,4564.9,2.00218091]
[1759646626846,1.16231128,4565.0,4564.9,2.00218091]
[1759646630853,1.16231128,4565.0,4564.9,1.82078091]
[1759646631652,1.16231128,4565.0,4564.9,2.00228091]
[1759646632048,1.16231128,4565.0,4564.9,1.82078091]
[1759646632355,1.38721128,4565.0,4564.9,1.82078091]
[1759646633856,1.38721128,4565.0,4564.9,2.00228091]
[1759646634355,0.48911128,4565.0,4564.9,2.00228091]
[1759646634554,0.2097,4565.5,4565.4,0.4459]
[1759646634850,0.2097,4565.5,4565.4,2.55187091]
[1759646635055,0.2097,4565.7,4565.6,0.84007]
[1759646635249,0.2097,4565.7,4565.6,1.39897]
[1759646635450,0.2097,4565.8,4565.7,0.7848]
[1759646635757,0.43740659,4565.8,4565.7,0.44546072]
[1759646636555,0.75320659,4565.8,4565.7,0.44546072]
[1759646636852,0.75320659,4565.8,4565.7,0.66806072]
[1759646637049,0.75320659,4565.8,4565.7,1.00696072]
[1759646637050,0.52830659,4565.8,4565.7,1.00696072]
[1759646637750,0.31860659,4565.8,4565.7,1.00696072]
[1759646638658,0.00280659,4565.8,4565.7,1.00696072]
[1759646640261,0.00280659,4565.8,4565.7,4.21476072]
[1759646640560,0.52830659,4565.8,4565.7,4.45271938]
[1759646641264,0.00280659,4565.8,4565.7,4.45271938]
[1759646643363,0.75320659,4565.8,4565.7,4.21476072]
[1759646644452,0.75320659,4565.8,4565.7,0.66806072]
[1759646644858,0.75320659,4565.8,4565.7,1.00696072]
[1759646646068,0.00280659,4565.8,4565.7,4.21476072]
[1759646646263,0.3158,4566.4,4565.7,4.21476072]
[1759646646466,0.7504,4566.4,4566.3,1.15288091]
[1759646646669,0.92781779,4566.4,4566.3,0.22]
[1759646647167,1.24361779,4566.4,4566.3,0.22]
[1759646647359,1.24587331,4566.4,4566.3,0.22]
[1759646647557,1.24587331,4566.4,4566.0,1.15288091]
[1759646647558,0.4346,4566.1,4566.0,1.15288091]
[1759646647763,1.24361779,4566.1,4566.0,1.37288091]
[1759646649064,1.24361779,4566.1,4566.0,1.15288091]
[1759646649262,1.24361779,4566.1,4566.0,1.37288091]
[1759646650172,1.24361779,4566.1,4566.0,1.59618091]
[1759646650566,1.24361779,4566.1,4566.0,1.37288091]
[1759646652168,1.24361779,4566.1,4566.0,2.15768091]
[1759646653375,1.01871779,4566.1,4566.0,2.15768091]
[1759646653672,0.49321779,4566.1,4566.0,2.15768091]
[1759646653869,0.5255,4566.1,4566.0,2.15768091]
[1759646654072,1.24361779,4566.1,4566.0,2.15768091]
[1759646654273,1.24361779,4566.1,4566.0,1.99982808]
[1759646654965,0.49321779,4566.1,4566.0,2.39396808]
[1759646655161,0.00225552,4566.4,4566.3,1.17891]
[1759646655364,0.00225552,4566.4,4566.3,3.38896616]
[1759646655566,0.49864034,4566.4,4566.3,2.39393808]
[1759646655773,0.49864034,4566.4,4566.3,1.99982808]
[1759646656073,0.00225552,4566.4,4566.3,5.20762808]
[1759646657070,0.31805552,4566.4,4566.3,5.20762808]
[1759646657468,0.52775552,4566.4,4566.3,5.20762808]
[1759646658170,0.00225552,4566.4,4566.3,5.20762808]
[1759646658572,0.34395552,4566.4,4566.3,5.20762808]
[1759646658965,0.00225552,4566.4,4566.3,5.20762808]
[1759646659172,3.6454,4567.1,4566.5,0.39409]
[1759646659375,0.4376,4566.7,4566.6,0.7617]
[1759646659677,0.4376,4566.7,4566.6,0.9715]
[1759646659972,0.7793,4566.7,4566.6,0.9715]
[1759646660173,0.78171739,4566.7,4566.6,0.9715]
[1759646660375,0.78171739,4566.7,4566.6,0.7515]
[1759646660574,0.78171739,4566.7,4566.6,1.65232808]
[1759646660970,0.78171739,4566.7,4566.6,1.96652808]
[1759646663271,0.78171739,4566.7,4566.6,0.2275]
[1759646663480,0.78171739,4566.7,4566.1,0.39412]
[1759646663481,0.9152,4566.5,4566.1,0.39412]
[1759646663667,0.9152,4566.5,4566.4,0.99502808]
[1759646663870,1.38908631,4566.5,4566.4,1.22252808]
[1759646664070,1.38907835,4566.5,4566.4,1.44252808]
[1759646665277,1.38907835,4566.5,4566.4,1.21502808]
[1759646665671,1.38907835,4566.5,4566.4,0.99502808]
[1759646665871,1.38907835,4566.5,4566.4,1.21502808]
[1759646666271,1.04737835,4566.5,4566.1,0.99502808]
[1759646666476,1.04737835,4566.5,4565.7,0.31636072]
[1759646666477,0.7793,4565.9,4565.8,0.62165]
[1759646666775,1.25317835,4565.9,4565.8,2.36067808]
[1759646666976,0.7793,4565.9,4565.8,2.36067808]
[1759646667175,1.25329409,4565.9,4565.8,2.36067808]
[1759646667374,1.25330766,4565.9,4565.8,2.36067808]
[1759646668780,1.25330766,4565.9,4565.8,0.4373]
[1759646668983,1.25330766,4565.9,4565.8,1.44252808]
[1759646669170,1.25330766,4565.9,4565.8,1.96652808]
[1759646672680,1.25330766,4565.9,4565.8,1.65232808]
[1759646673180,1.25330766,4565.9,4565.8,1.98122808]
[1759646675177,1.25330766,4565.9,4565.8,1.43232808]
[1759646675384,1.25330766,4565.9,4565.8,1.21502808]
[1759646676976,0.81570766,4565.9,4565.8,1.98092808]
[1759646677282,1.04100766,4565.9,4565.8,1.98092808]
[1759646679482,1.24880766,4565.9,4565.8,1.98092808]
[1759646681986,0.80040766,4565.9,4565.8,1.98092808]
[1759646682186,1.02570766,4565.9,4565.8,1.98092808]
[1759646683683,1.23350766,4565.9,4565.8,1.98092808]
[1759646684989,1.23350766,4565.9,4565.8,1.65202808]
[1759646685191,1.23350766,4565.9,4565.8,1.21502808]
[1759646685989,1.23350766,4565.9,4565.8,1.81887808]
[1759646686387,1.23350766,4565.9,4565.7,0.00216072]
[1759646686589,1.23350766,4565.8,4565.7,0.21186072]
[1759646686785,1.23350766,4565.8,4565.7,1.4268888]
[1759646686986,1.23350766,4565.8,4565.7,1.2068888]
[1759646687286,1.23350766,4565.8,4565.7,1.4268888]
[1759646688384,1.23350766,4565.8,4565.7,1.7620888]
[1759646690195,1.23350766,4565.8,4565.7,1.9902888]
[1759646693294,0.47400766,4565.8,4565.7,1.9902888]
[1759646693688,0.78850766,4565.8,4565.7,1.9902888]
[1759646694790,0.47400766,4565.8,4565.7,1.9902888]
[1759646695297,0.5355,4566.3,4566.2,0.7862]
[1759646695589,1.00973353,4566.3,4566.2,2.00122808]
[1759646700494,1.23433353,4566.3,4566.2,1.44602808]
[1759646700694,1.23433353,4566.3,4566.2,1.21502808]
[1759646700890,1.23433353,4566.3,4566.2,1.21782808]
[1759646701091,1.23433353,4566.3,4566.2,2.00122808]
[1759646701292,0.7601,4565.9,4565.8,1.18035]
[1759646701493,1.23433353,4565.9,4565.8,2.39537808]
[1759646703097,0.47423353,4565.9,4565.8,2.39537808]
[1759646704708,0.5355,4566.6,4566.5,0.7862]
[1759646705008,1.00540743,4566.6,4566.5,2.00122808]
[1759646705306,1.23000743,4566.6,4566.5,2.00122808]
[1759646709613,1.23000743,4566.6,4566.5,1.0062]
[1759646709813,1.23000743,4566.6,4566.5,2.00122808]
[1759646714219,1.23000743,4566.6,4566.5,2.15749865]
[1759646714415,1.23000743,4566.6,4566.5,0.4428]
[1759646715022,0.7601,4566.4,4566.3,1.54540865]
[1759646715315,1.23000743,4566.4,4566.3,1.98820865]
[1759646716012,1.23000743,4566.4,4566.3,1.59409865]
[1759646719221,1.23000743,4566.4,4566.3,1.37409865]
[1759646719918,1.23000743,4566.4,4566.0,0.39413]
[1759646720219,0.7613,4566.1,4566.0,0.60733]
[1759646720421,1.23120743,4566.1,4566.0,1.15793]
[1759646720620,1.23120743,4566.1,4566.0,1.38493]
[1759646722921,1.23120743,4566.1,4566.0,1.16493]
[1759646723121,1.23120743,4566.1,4566.0,1.38494]
[1759646723821,1.23120743,4566.1,4566.0,1.16494]
[1759646724122,1.23120743,4566.1,4566.0,1.38494]
[1759646725418,1.23120743,4566.1,4566.0,1.05434]
[1759646725918,0.7613,4565.8,4565.7,0.60952072]
[1759646726120,1.23120743,4565.8,4565.7,1.38712072]
[1759646727725,0.7613,4565.8,4565.7,1.38712072]
[1759646727926,1.22991747,4565.8,4565.7,1.38712072]
[1759646730230,0.46861747,4565.8,4565.7,1.38712072]
[1759646731727,0.78391747,4565.8,4565.7,1.38712072]
[1759646732129,0.46861747,4565.8,4565.7,1.38712072]
[1759646732331,0.99071747,4565.8,4565.7,1.38712072]
[1759646734026,1.20661747,4565.8,4565.7,1.38712072]
[1759646735128,1.20661747,4565.8,4565.7,0.99296072]
[1759646735430,1.20661747,4565.8,4565.7,0.22216072]
[1759646735626,1.20661747,4565.8,4565.7,0.00216072]
[1759646735835,1.20661747,4565.8,4565.7,0.22216072]
[1759646736338,0.5573,4565.0,4564.8,0.39423]
[1759646736538,1.20661747,4564.9,4564.8,0.39423]
[1759646736827,1.20661747,4564.9,4564.8,0.61423]
[1759646737035,1.20661747,4564.9,4564.8,0.22]
[1759646737231,1.20661747,4564.9,4564.8,0.22165414]
[1759646737232,0.89131747,4564.9,4564.8,0.22165414]
[1759646737437,1.20661747,4564.9,4564.8,0.22165414]
[1759646738128,1.20661747,4564.9,4564.8,0.00165414]
[1759646738635,1.20661747,4564.9,4564.8,0.74205414]
[1759646745937,0.738,4564.9,4564.8,0.74205414]
[1759646748540,0.738,4564.9,4564.8,0.41765414]
[1759646749731,0.738,4564.9,4564.8,0.75215414]
[1759646750634,0.738,4564.9,4564.8,0.63765414]
[1759646751540,0.738,4564.9,4564.8,0.97215414]
[1759646753239,0.738,4564.9,4564.8,0.63765414]
[1759646753537,1.20745535,4564.9,4564.8,0.97215414]
[1759646753742,0.738,4564.9,4564.8,0.42995414]
[1759646754141,1.20750239,4564.9,4564.8,0.42995414]
[1759646755343,1.20750239,4564.9,4564.8,0.22165414]
[1759646757842,1.20750239,4564.9,4564.8,0.43765414]
[1759646758037,1.20750239,4564.9,4564.8,0.22165414]
[1759646758245,1.20750239,4564.9,4564.8,0.00165414]
[1759646758540,1.20750239,4564.9,4564.8,0.22165414]
[1759646759241,1.20750239,4564.9,4564.8,0.00165414]
[1759646761239,0.2214,4563.6,4563.5,0.3345]
[1759646761448,1.50589865,4565.0,4563.5,0.3345]
[1759646761449,0.5302,4564.1,4564.0,1.1718]
[1759646761643,0.5302,4564.1,4564.0,2.32309865]
[1759646761644,1.00006814,4564.1,4564.0,2.32309865]
[1759646762135,1.21046814,4564.1,4564.0,2.32309865]
[1759646762340,1.21046814,4564.1,4564.0,0.77972515]
[1759646763542,1.21046814,4564.1,4564.0,0.66522515]
[1759646763741,1.21046814,4564.1,4564.0,0.44522515]
[1759646763941,1.21046814,4564.1,4564.0,0.22222515]
[1759646764948,1.21046814,4564.1,4564.0,0.00222515]
[1759646771150,1.21046814,4564.1,4564.0,0.21822515]
[1759646772241,1.21046814,4564.1,4564.0,0.00222515]
[1759646773550,1.21046814,4564.1,4564.0,0.55272515]
[1759646773754,1.21046814,4564.1,4564.0,0.00222515]
[1759646776246,1.00006814,4564.1,4564.0,0.77972515]
[1759646776849,1.21046814,4564.1,4564.0,0.77972515]
[1759646777452,1.21046814,4564.1,4564.0,0.60972515]
[1759646777852,1.21536788,4564.1,4564.0,0.60972515]
[1759646778247,1.21536788,4564.1,4564.0,0.61240275]
[1759646779651,0.78356788,4564.1,4564.0,0.61240275]
[1759646779854,0.78356788,4564.1,4564.0,1.27403096]
[1759646779855,1.21106788,4564.1,4564.0,1.27403096]
[1759646780052,1.21106788,4564.1,4564.0,0.27790275]
[1759646780253,1.21106788,4564.1,4564.0,1.27403096]
[1759646783447,1.21106788,4564.1,4564.0,1.58423096]
[1759646784159,1.21106788,4564.1,4564.0,1.27403096]
[1759646784948,0.78356788,4564.1,4564.0,1.58423096]
[1759646785156,0.78356788,4564.1,4564.0,1.80423096]
[1759646785754,0.79786788,4564.1,4564.0,1.80423096]
[1759646785955,1.01186788,4564.1,4564.0,1.80423096]
[1759646786656,0.47476788,4564.1,4564.0,0.80810275]
[1759646786856,1.01186788,4564.1,4564.0,0.80810275]
[1759646787053,1.01186788,4564.1,4564.0,1.80423096]
[1759646792362,1.22536788,4564.1,4564.0,1.49403096]
[1759646793958,1.22536788,4564.1,4564.0,1.80563096]
[1759646794563,0.79786788,4564.1,4564.0,1.80563096]
[1759646794761,1.02126788,4564.1,4564.0,1.80563096]
[1759646795259,3.2078,4565.4,4564.1,1.29736]
[1759646795460,3.2078,4565.4,4565.2,1.124]
[1759646795461,0.77983645,4565.3,4565.2,1.124]
[1759646795754,1.21583645,4565.3,4565.2,0.4282]
[1759646797156,0.90553645,4565.3,4564.7,3.2078]
[1759646797362,0.7463,4564.7,4564.6,1.59857821]
[1759646797660,0.7463,4564.7,4564.6,2.34017821]
[1759646798260,0.3103,4564.7,4564.6,2.34017821]
[1759646798863,0.668,4565.0,4564.9,1.12403]
[1759646799162,0.668,4565.0,4564.9,2.34015821]
[1759646800656,0.5337,4565.0,4564.9,2.34015821]
[1759646800862,0.8806,4565.0,4564.9,2.02855821]
[1759646801054,0.8806,4565.0,4564.9,1.63432821]
[1759646801455,0.8806,4565.0,4564.9,2.02855821]
[1759646802055,0.8806,4565.0,4564.9,2.34015821]
[1759646802863,0.8806,4565.0,4564.9,2.12015821]
[1759646803056,0.668,4565.0,4564.9,2.34015821]
[1759646803359,0.668,4565.0,4564.9,2.12015821]
[1759646803550,0.668,4565.0,4564.9,2.34015821]
[1759646803755,0.8806,4565.0,4564.9,2.12015821]
[1759646803951,0.8806,4565.0,4564.7,3.2078]
[1759646804157,0.1343,4564.5,4564.3,0.99612821]
[1759646804351,0.8806,4564.5,4564.4,0.4282]
[1759646806659,0.8806,4564.5,4564.4,0.2082]
[1759646806962,0.8806,4564.5,4564.4,0.4282]
[1759646808167,0.8806,4564.5,4564.4,0.6446]
[1759646808367,0.668,4564.5,4564.4,0.7538]
[1759646808569,0.668,4564.5,4564.4,0.9738]
[1759646808963,0.5337,4564.5,4564.4,0.9738]
[1759646809162,0.3103,4564.5,4564.4,0.9738]
[1759646809358,0.3112,4564.9,4564.4,0.5492]
[1759646809559,0.3112,4564.9,4564.8,2.16376821]
[1759646809770,0.77337024,4564.9,4564.8,2.38376821]
[1759646810473,0.3112,4564.9,4564.8,2.38376821]
[1759646811171,3.2078,4565.9,4564.8,2.38376821]
[1759646811172,0.3112,4565.4,4565.3,0.7734]
[1759646811470,0.98202987,4565.4,4565.3,1.98952821]
[1759646812070,1.19462987,4565.4,4565.3,1.98952821]
[1759646812268,0.77342987,4565.4,4565.3,1.98952821]
[1759646812768,0.98202987,4565.4,4565.3,1.98952821]
[1759646813664,0.77342987,4565.4,4565.3,1.98952821]
[1759646813863,0.46222987,4565.4,4565.3,1.98952821]
[1759646814266,0.77342987,4565.4,4565.3,1.98952821]
[1759646815174,0.98202987,4565.4,4565.3,1.98952821]
[1759646815579,1.19462987,4565.4,4565.3,1.98952821]
[1759646817677,0.98202987,4565.4,4565.3,1.98952821]
[1759646818274,0.98202987,4565.4,4565.3,5.41007379]
[1759646819573,0.3112,4566.1,4565.3,11.406202]
[1759646819771,0.99484696,4566.0,4565.9,1.16754]
[1759646819970,1.13054696,4566.0,4565.9,1.38754]
[1759646820171,1.34314696,4566.0,4565.9,0.62194]
[1759646820369,1.34314696,4566.0,4565.9,1.05834]
[1759646820564,1.34314696,4566.0,4565.9,1.38754]
[1759646820971,1.34314696,4566.0,4565.9,2.38366821]
[1759646822177,1.34314696,4566.0,4565.9,2.05446821]
[1759646824074,1.34314696,4566.0,4565.9,2.38366821]
[1759646836386,1.34314696,4566.0,4565.9,2.53899993]
[1759646836774,1.13054696,4566.0,4565.9,2.53899993]
[1759646837380,1.34314696,4566.0,4565.9,2.53899993]
[1759646839187,1.34314696,4566.0,4565.8,3.2078]
[1759646839383,1.23894696,4565.9,4565.8,3.2078]
[1759646839588,1.23894696,4565.9,4565.8,3.4278]
[1759646840988,1.23894696,4565.9,4565.8,3.2078]
[1759646841184,1.23894696,4565.9,4565.8,3.4278]
[1759646843186,1.23894696,4565.9,4565.8,3.6364]
[1759646844290,1.02064696,4565.9,4565.8,4.1559]
[1759646844889,0.81384696,4565.9,4565.8,4.1559]
[1759646845491,0.47504696,4565.9,4565.8,4.1559]
[1759646845689,3.2078,4566.4,4566.0,0.4198]
[1759646845892,0.3388,4566.1,4566.0,0.4198]
[1759646846090,0.3388,4566.1,4566.0,0.6398]
[1759646846289,0.82944639,4566.1,4566.0,0.9481]
[1759646846884,0.82944639,4566.1,4566.0,2.09955993]
[1759646847086,1.03624639,4566.1,4566.0,2.09955993]
[1759646847290,1.03624639,4566.1,4566.0,2.49369993]
[1759646847495,0.82944639,4566.1,4566.0,2.49369993]
[1759646850397,1.03624639,4566.1,4566.0,2.49369993]
[1759646851094,1.05487791,4566.1,4566.0,2.49369993]
[1759646856395,1.05487791,4566.1,4566.0,1.34224]
[1759646861601,1.28217791,4566.1,4566.0,1.34224]
[1759646862103,1.05487791,4566.1,4566.0,1.34224]
[1759646865011,0.50927791,4566.1,4566.0,1.42374]
[1759646866100,0.50927791,4566.1,4566.0,6.42374]
[1759646866306,0.00241739,4566.7,4566.6,0.7584]
[1759646866509,0.00241739,4566.7,4566.6,2.12985993]
[1759646867208,0.00241739,4566.7,4566.6,2.52393993]
[1759646867408,0.34321739,4566.7,4566.6,2.52393993]
[1759646867603,0.56641739,4566.7,4566.6,2.52393993]
[1759646867810,0.78321739,4566.7,4566.6,1.98683993]
[1759646868013,0.78321739,4566.7,4566.6,2.20683993]
[1759646868615,0.78321739,4566.7,4566.6,2.52183993]
[1759646869007,0.78321739,4566.7,4566.6,4.28016929]
[1759646869407,0.34321739,4566.7,4566.6,4.28016929]
[1759646869713,0.56641739,4566.7,4566.6,4.28016929]
[1759646870414,0.56641739,4566.7,4566.6,2.52183993]
[1759646872220,0.34321739,4566.7,4566.6,4.2381417]
[1759646872416,0.00241739,4566.7,4566.6,4.2381417]
[1759646873023,0.56641739,4566.7,4566.6,4.2381417]